[Event "NJSK 2021 Meisjes A&B"]
[Site "Almelo, Netherlands"]
[Date "2021.08.04"]
[Round "4.1"]
[White "Den Heijer, Rolinde"]
[Black "Ricken, Katharina"]
[Result "1/2-1/2"]
[TimeControl "90min/40moves + 30sec/move"]
[WhiteElo "1483"]
[BlackElo "2030"]

1. e4 {[%clk 01:30:58]} {[%emt 00:00:01]} e6 {[%clk 01:30:56]} {[%emt
00:00:05]} 2. d4 {[%clk 01:31:24]} {[%emt 00:00:04]} d5 {[%clk 01:31:23]}
{[%emt 00:00:03]} 3. exd5 {[%clk 01:31:50]} {[%emt 00:00:05]} exd5 {[%clk
01:31:48]} {[%emt 00:00:05]} 4. Nf3 {[%clk 01:32:13]} {[%emt 00:00:07]} Nf6
{[%clk 01:32:15]} {[%emt 00:00:04]} 5. Bf4 {[%clk 01:32:04]} {[%emt 00:00:39]}
Bg4 {[%clk 01:30:07]} {[%emt 00:02:38]} 6. h3 {[%clk 01:30:46]} {[%emt
00:01:48]} Qe7+ {[%clk 01:26:40]} {[%emt 00:03:57]} 7. Be5 {[%clk 01:27:14]}
{[%emt 00:04:02]} Bh5 {[%clk 01:22:39]} {[%emt 00:04:31]} 8. Nbd2 {[%clk
01:23:44]} {[%emt 00:04:00]} Ne4 {[%clk 01:18:07]} {[%emt 00:05:02]} 9. Be2
{[%clk 01:18:48]} {[%emt 00:05:26]} Nc6 {[%clk 01:09:31]} {[%emt 00:09:06]} 10.
O-O {[%clk 01:14:09]} {[%emt 00:05:09]} O-O-O {[%clk 01:02:18]} {[%emt
00:07:44]} 11. Re1 {[%clk 01:00:51]} {[%emt 00:13:48]} f6 {[%clk 00:57:20]}
{[%emt 00:05:28]} 12. Bg3 {[%clk 00:55:54]} {[%emt 00:05:26]} g5 {[%clk
00:48:55]} {[%emt 00:08:56]} 13. c3 {[%clk 00:49:34]} {[%emt 00:06:50]} Bg7
{[%clk 00:44:15]} {[%emt 00:05:10]} 14. Ne5 {[%clk 00:42:11]} {[%emt 00:07:54]}
fxe5 {[%clk 00:37:49]} {[%emt 00:06:56]} 15. Bxh5 {[%clk 00:41:49]} {[%emt
00:00:52]} Nxg3 {[%clk 00:33:17]} {[%emt 00:05:02]} 16. Qg4+ {[%clk 00:41:13]}
{[%emt 00:01:05]} Kb8 {[%clk 00:33:31]} {[%emt 00:00:17]} 17. Qxg3 {[%clk
00:41:26]} {[%emt 00:00:17]} Qd6 {[%clk 00:31:17]} {[%emt 00:02:44]} 18. dxe5
{[%clk 00:39:15]} {[%emt 00:02:41]} Bxe5 {[%clk 00:31:45]} {[%emt 00:00:02]} 19.
Qg4 {[%clk 00:38:53]} {[%emt 00:00:50]} h6 {[%clk 00:28:22]} {[%emt 00:03:54]}
20. Nf3 {[%clk 00:35:11]} {[%emt 00:04:12]} Bg7 {[%clk 00:23:51]} {[%emt
00:05:01]} 21. Re6 {[%clk 00:31:08]} {[%emt 00:04:32]} Qd7 {[%clk 00:20:32]}
{[%emt 00:03:50]} 22. Rae1 {[%clk 00:30:48]} {[%emt 00:00:50]} Bf8 {[%clk
00:13:09]} {[%emt 00:07:54]} 23. Nd4 {[%clk 00:22:30]} {[%emt 00:08:48]} Bd6
{[%clk 00:12:14]} {[%emt 00:01:25]} 24. Nxc6+ {[%clk 00:19:42]} {[%emt
00:03:18]} Qxc6 {[%clk 00:12:11]} {[%emt 00:00:33]} 25. Qd4 {[%clk 00:19:03]}
{[%emt 00:01:09]} Qd7 {[%clk 00:11:08]} {[%emt 00:01:34]} 26. Qxh8 {[%clk
00:13:33]} {[%emt 00:06:00]} Rxh8 {[%clk 00:11:36]} {[%emt 00:00:01]} 27. Re8+
{[%clk 00:13:56]} {[%emt 00:00:08]} Rxe8 {[%clk 00:12:05]} {[%emt 00:00:02]} 28.
Rxe8+ {[%clk 00:14:17]} {[%emt 00:00:08]} Qxe8 {[%clk 00:12:33]} {[%emt
00:00:01]} 29. Bxe8 {[%clk 00:14:37]} {[%emt 00:00:10]} 1/2-1/2

[Event "NJSK 2021 Meisjes A&B"]
[Site "Almelo, Netherlands"]
[Date "2021.08.04"]
[Round "4.2"]
[White "De Zoeten, Cato"]
[Black "Maris, Evi"]
[Result "1-0"]
[TimeControl "90min/40moves + 30sec/move"]
[WhiteElo "1881"]
[BlackElo "1232"]

1. e4 {[%clk 01:30:59]} e5 {[%clk 01:30:56]} {[%emt 00:00:04]} 2. Nf3 {[%clk
01:31:24]} {[%emt 00:00:04]} Nc6 {[%clk 01:31:23]} {[%emt 00:00:05]} 3. Bb5
{[%clk 01:31:50]} {[%emt 00:00:04]} Nf6 {[%clk 01:31:43]} {[%emt 00:00:10]} 4.
O-O {[%clk 01:32:10]} {[%emt 00:00:10]} d6 {[%clk 01:32:02]} {[%emt 00:00:11]}
5. d4 {[%clk 01:21:46]} {[%emt 00:10:53]} exd4 {[%clk 01:31:58]} {[%emt
00:00:34]} 6. Nxd4 {[%clk 01:21:04]} {[%emt 00:01:12]} Bd7 {[%clk 01:32:19]}
{[%emt 00:00:10]} 7. Bxc6 {[%clk 01:20:39]} {[%emt 00:00:56]} bxc6 {[%clk
01:32:12]} {[%emt 00:00:37]} 8. Re1 {[%clk 01:14:31]} {[%emt 00:06:37]} Be7
{[%clk 01:32:12]} {[%emt 00:00:30]} 9. Nd2 {[%clk 01:12:41]} {[%emt 00:02:19]}
O-O {[%clk 01:32:14]} {[%emt 00:00:29]} 10. Nf1 {[%clk 01:11:34]} {[%emt
00:01:36]} c5 {[%clk 01:32:22]} {[%emt 00:00:22]} 11. Nf3 {[%clk 01:08:22]}
{[%emt 00:03:42]} Bc6 {[%clk 01:31:32]} {[%emt 00:01:21]} 12. Ng3 {[%clk
01:04:34]} {[%emt 00:04:18]} Qd7 {[%clk 01:30:59]} {[%emt 00:01:03]} 13. b3
{[%clk 01:00:59]} {[%emt 00:04:05]} Rad8 {[%clk 01:30:08]} {[%emt 00:01:22]} 14.
Bb2 {[%clk 00:55:45]} {[%emt 00:05:44]} h6 {[%clk 01:28:49]} {[%emt 00:01:48]}
15. Qd2 {[%clk 00:50:52]} {[%emt 00:05:23]} Qg4 {[%clk 01:27:11]} {[%emt
00:02:08]} 16. h3 {[%clk 00:37:46]} {[%emt 00:13:37]} Qg6 {[%clk 01:26:49]}
{[%emt 00:00:51]} 17. Nf5 {[%clk 00:32:33]} {[%emt 00:05:42]} Rfe8 {[%clk
01:26:46]} {[%emt 00:00:34]} 18. N3h4 {[%clk 00:30:25]} {[%emt 00:02:37]} Qh7
{[%clk 01:26:25]} {[%emt 00:00:51]} 19. f3 {[%clk 00:27:31]} {[%emt 00:03:24]}
Nh5 {[%clk 01:21:43]} {[%emt 00:05:12]} 20. Nxe7+ {[%clk 00:20:03]} {[%emt
00:07:58]} Rxe7 {[%clk 01:21:11]} {[%emt 00:01:02]} 21. g4 {[%clk 00:18:56]}
{[%emt 00:01:37]} Nf6 {[%clk 01:20:06]} {[%emt 00:01:35]} 22. Bxf6 {[%clk
00:19:03]} {[%emt 00:00:24]} gxf6 {[%clk 01:20:26]} {[%emt 00:00:10]} 23. Nf5
{[%clk 00:19:23]} {[%emt 00:00:08]} Re5 {[%clk 01:19:34]} {[%emt 00:01:22]} 24.
Qxh6 {[%clk 00:19:07]} {[%emt 00:00:46]} Qxh6 {[%clk 01:19:12]} {[%emt
00:00:52]} 25. Nxh6+ {[%clk 00:19:36]} {[%emt 00:00:01]} Kg7 {[%clk 01:19:28]}
{[%emt 00:00:14]} 26. Nf5+ {[%clk 00:19:59]} {[%emt 00:00:07]} Kg6 {[%clk
01:19:45]} {[%emt 00:00:13]} 27. Kf2 {[%clk 00:20:01]} {[%emt 00:00:28]} Rh8
{[%clk 01:19:05]} {[%emt 00:01:10]} 28. h4 {[%clk 00:19:26]} {[%emt 00:01:05]}
Bd7 {[%clk 01:18:52]} {[%emt 00:00:44]} 29. h5+ {[%clk 00:17:06]} {[%emt
00:02:50]} Kh7 {[%clk 01:18:48]} {[%emt 00:00:33]} 30. Rad1 {[%clk 00:14:32]}
{[%emt 00:03:04]} a5 {[%clk 01:17:06]} {[%emt 00:02:13]} 31. Ne3 {[%clk
00:12:24]} {[%emt 00:02:37]} a4 {[%clk 01:17:08]} {[%emt 00:00:29]} 32. Nd5
{[%clk 00:12:22]} {[%emt 00:00:31]} Bc6 {[%clk 01:16:51]} {[%emt 00:00:47]} 33.
Nxc7 {[%clk 00:10:06]} {[%emt 00:02:45]} Rd8 {[%clk 01:16:41]} {[%emt
00:00:40]} 34. Nd5 {[%clk 00:09:28]} {[%emt 00:01:09]} axb3 {[%clk 01:16:45]}
{[%emt 00:00:26]} 35. axb3 {[%clk 00:09:05]} {[%emt 00:00:53]} Kg7 {[%clk
01:16:45]} {[%emt 00:00:29]} 36. Rh1 {[%clk 00:08:22]} {[%emt 00:01:13]} Bxd5
{[%clk 01:16:42]} {[%emt 00:00:33]} 37. Rxd5 {[%clk 00:08:23]} {[%emt
00:00:29]} Kh6 {[%clk 01:16:45]} {[%emt 00:00:27]} 38. Rhd1 {[%clk 00:07:21]}
{[%emt 00:01:31]} Re6 {[%clk 01:16:42]} {[%emt 00:00:34]} 39. Rxc5 {[%clk
00:07:03]} {[%emt 00:00:49]} Ra8 {[%clk 01:16:34]} {[%emt 00:00:37]} 40. Rc6
{[%clk 00:05:26]} {[%emt 00:02:06]} Ra2 {[%clk 01:16:35]} {[%emt 00:00:30]} 41.
Rd2 {[%clk 00:05:27]} {[%emt 00:00:29]} Kg5 {[%clk 01:16:31]} {[%emt 00:00:35]}
42. Rc7 {[%clk 00:04:50]} {[%emt 00:01:07]} f5 {[%clk 01:14:34]} {[%emt
00:02:27]} 43. exf5 {[%clk 00:03:14]} {[%emt 00:02:06]} Rf6 {[%clk 01:14:09]}
{[%emt 00:00:56]} 44. Kg3 {[%clk 00:03:01]} {[%emt 00:00:43]} Kh6 {[%clk
01:12:52]} {[%emt 00:01:47]} 45. Kf4 {[%clk 00:03:24]} {[%emt 00:00:06]} Ra5
{[%clk 01:12:42]} {[%emt 00:00:41]} 46. g5+ {[%clk 00:03:39]} {[%emt 00:00:15]}
Kg7 {[%clk 01:12:45]} {[%emt 00:00:27]} 47. gxf6+ {[%clk 00:03:55]} {[%emt
00:00:14]} Kxf6 {[%clk 01:13:04]} {[%emt 00:00:10]} 48. Rxd6+ {[%clk 00:04:19]}
{[%emt 00:00:06]} Kg7 {[%clk 01:13:24]} {[%emt 00:00:11]} 49. h6+ {[%clk
00:04:11]} {[%emt 00:00:38]} Kg8 {[%clk 01:13:38]} {[%emt 00:00:16]} 50. Rd8+
{[%clk 00:04:20]} {[%emt 00:00:21]} Kh7 {[%clk 01:13:55]} {[%emt 00:00:13]} 51.
Rxf7+ {[%clk 00:04:43]} {[%emt 00:00:07]} Kxh6 {[%clk 01:14:19]} {[%emt
00:00:06]} 52. Rh8# {[%clk 00:05:03]} {[%emt 00:00:10]} 1-0

[Event "NJSK 2021 Meisjes A&B"]
[Site "Almelo, Netherlands"]
[Date "2021.08.04"]
[Round "4.3"]
[White "Basa, Manasvita"]
[Black "Cordes, Jule"]
[Result "0-1"]
[TimeControl "90min/40moves + 30sec/move"]
[WhiteElo "1711"]
[BlackElo "1790"]

1. e4 {[%clk 01:30:57]} {[%emt 00:00:01]} c5 {[%clk 01:30:53]} {[%emt
00:00:08]} 2. Nf3 {[%clk 01:31:23]} {[%emt 00:00:04]} g6 {[%emt 00:00:14]} 3.
d4 {[%clk 01:31:41]} {[%emt 00:00:07]} cxd4 {[%clk 01:31:38]} {[%emt 00:00:07]}
4. Nxd4 {[%clk 01:32:05]} {[%emt 00:00:05]} Bg7 {[%clk 01:32:00]} {[%emt
00:00:08]} 5. Be3 {[%clk 01:32:22]} {[%emt 00:00:13]} Nc6 {[%clk 01:31:58]}
{[%emt 00:00:32]} 6. c4 {[%clk 01:31:22]} {[%emt 00:01:31]} Nf6 {[%clk
01:30:51]} {[%emt 00:01:36]} 7. Nc3 {[%clk 01:31:44]} {[%emt 00:00:08]} d6
{[%clk 01:29:08]} {[%emt 00:02:14]} 8. h3 {[%clk 01:30:00]} {[%emt 00:02:13]}
O-O {[%clk 01:25:52]} {[%emt 00:03:46]} 9. Be2 {[%clk 01:30:17]} {[%emt
00:00:13]} Nxd4 {[%clk 01:23:27]} {[%emt 00:02:56]} 10. Bxd4 {[%clk 01:30:24]}
{[%emt 00:00:23]} Nd7 {[%clk 01:23:02]} {[%emt 00:00:55]} 11. O-O {[%clk
01:29:19]} {[%emt 00:01:34]} a5 {[%clk 01:17:39]} {[%emt 00:05:54]} 12. Bxg7
{[%clk 01:22:57]} {[%emt 00:06:52]} Kxg7 {[%clk 01:18:02]} {[%emt 00:00:06]} 13.
Qd4+ {[%clk 01:23:18]} {[%emt 00:00:09]} Kg8 {[%clk 01:17:57]} {[%emt
00:00:36]} 14. f4 {[%clk 01:22:44]} {[%emt 00:01:04]} Qb6 {[%clk 01:02:31]}
{[%emt 00:15:56]} 15. Qxb6 {[%clk 01:22:59]} {[%emt 00:00:15]} Nxb6 {[%clk
01:02:56]} {[%emt 00:00:06]} 16. Rac1 {[%clk 01:22:36]} {[%emt 00:00:53]} Be6
{[%clk 01:01:15]} {[%emt 00:02:11]} 17. Nd5 {[%clk 01:22:10]} {[%emt 00:00:55]}
Bxd5 {[%clk 01:00:36]} {[%emt 00:01:10]} 18. cxd5 {[%clk 01:17:00]} {[%emt
00:05:41]} Rfc8 {[%clk 00:57:23]} {[%emt 00:03:43]} 19. Bg4 {[%clk 01:14:53]}
{[%emt 00:02:36]} Rc4 {[%clk 00:56:27]} {[%emt 00:01:26]} 20. Rxc4 {[%clk
00:46:16]} {[%emt 00:29:07]} Nxc4 {[%clk 00:56:48]} {[%emt 00:00:09]} 21. Rc1
{[%clk 00:46:24]} {[%emt 00:00:22]} b5 {[%clk 00:51:17]} {[%emt 00:06:01]} 22.
b3 {[%clk 00:46:10]} {[%emt 00:00:44]} Nd2 {[%clk 00:37:18]} {[%emt 00:14:29]}
23. Re1 {[%clk 00:45:45]} {[%emt 00:00:54]} a4 {[%clk 00:36:45]} {[%emt
00:01:04]} 24. b4 {[%clk 00:40:37]} {[%emt 00:05:38]} a3 {[%clk 00:29:52]}
{[%emt 00:07:23]} 25. Re2 {[%clk 00:36:31]} {[%emt 00:04:35]} Nb1 {[%clk
00:24:25]} {[%emt 00:05:57]} 26. Bd7 {[%clk 00:26:00]} {[%emt 00:11:01]} Nc3
{[%clk 00:23:07]} {[%emt 00:01:48]} 27. Rc2 {[%clk 00:26:17]} {[%emt 00:00:13]}
Nxe4 {[%clk 00:23:16]} {[%emt 00:00:21]} 28. Bxb5 {[%clk 00:26:39]} {[%emt
00:00:08]} Rb8 {[%clk 00:23:32]} {[%emt 00:00:14]} 29. Rc4 {[%clk 00:16:37]}
{[%emt 00:10:31]} Nd2 {[%clk 00:23:11]} {[%emt 00:00:51]} 30. Rd4 {[%clk
00:16:45]} {[%emt 00:00:22]} Rxb5 {[%clk 00:22:59]} {[%emt 00:00:43]} 31. Rxd2
{[%clk 00:17:09]} {[%emt 00:00:05]} Rxb4 {[%clk 00:23:23]} {[%emt 00:00:06]} 32.
Rd3 {[%clk 00:17:30]} {[%emt 00:00:09]} Ra4 {[%clk 00:23:19]} {[%emt 00:00:34]}
33. g3 {[%clk 00:17:18]} {[%emt 00:00:41]} Kf8 {[%clk 00:21:22]} {[%emt
00:02:28]} 34. Rb3 {[%clk 00:12:38]} {[%emt 00:05:10]} Ke8 {[%clk 00:19:47]}
{[%emt 00:02:05]} 35. Rb8+ {[%clk 00:12:50]} {[%emt 00:00:18]} Kd7 {[%clk
00:20:11]} {[%emt 00:00:07]} 36. Rb7+ {[%clk 00:13:14]} {[%emt 00:00:05]} Kd8
{[%clk 00:19:29]} {[%emt 00:01:11]} 37. Kf2 {[%clk 00:10:33]} {[%emt 00:03:12]}
Rc4 {[%clk 00:19:15]} {[%emt 00:00:45]} 38. Rb8+ {[%clk 00:03:51]} {[%emt
00:07:12]} Kc7 {[%clk 00:19:02]} {[%emt 00:00:42]} 39. Rf8 {[%clk 00:03:58]}
{[%emt 00:00:23]} Rc2+ {[%clk 00:14:42]} {[%emt 00:04:50]} 40. Kf3 {[%clk
00:02:52]} {[%emt 00:01:36]} f5 {[%clk 00:11:29]} {[%emt 00:03:44]} 41. Rf7
{[%clk 00:01:00]} {[%emt 00:02:22]} Rxa2 {[%clk 00:29:47]} {[%emt 00:12:12]} 42.
Rxe7+ {[%clk 00:29:14]} {[%emt 00:02:15]} Kb8 {[%clk 00:29:26]} {[%emt
00:00:51]} 43. Rd7 {[%clk 00:24:45]} {[%emt 00:04:59]} Ra1 {[%clk 00:28:54]}
{[%emt 00:01:03]} 44. Rd8+ {[%clk 00:21:11]} {[%emt 00:04:03]} Kc7 {[%clk
00:27:13]} {[%emt 00:02:11]} 45. Ra8 {[%clk 00:21:34]} {[%emt 00:00:07]} a2
{[%clk 00:27:34]} {[%emt 00:00:09]} 46. Kg2 {[%clk 00:21:54]} {[%emt 00:00:09]}
Kb6 {[%clk 00:27:26]} {[%emt 00:00:38]} 47. g4 {[%clk 00:21:41]} {[%emt
00:00:44]} Kc5 {[%clk 00:27:34]} {[%emt 00:00:22]} 48. Ra5+ {[%clk 00:21:58]}
{[%emt 00:00:13]} Kd4 {[%clk 00:27:44]} {[%emt 00:00:20]} 49. gxf5 {[%clk
00:17:47]} {[%emt 00:04:41]} gxf5 {[%clk 00:28:05]} {[%emt 00:00:09]} 50. h4
{[%clk 00:17:50]} {[%emt 00:00:26]} h5 {[%clk 00:27:29]} {[%emt 00:01:06]} 51.
Kh2 {[%clk 00:11:33]} {[%emt 00:06:47]} Ke4 {[%clk 00:27:38]} {[%emt 00:00:20]}
52. Kg2 {[%clk 00:09:18]} {[%emt 00:02:44]} Kxf4 {[%clk 00:27:48]} {[%emt
00:00:20]} 53. Kh2 {[%clk 00:05:47]} {[%emt 00:04:01]} Ke5 {[%clk 00:27:23]}
{[%emt 00:00:55]} 54. Kg2 {[%clk 00:05:21]} {[%emt 00:00:56]} f4 {[%clk
00:27:34]} {[%emt 00:00:19]} 55. Ra4 {[%clk 00:03:15]} {[%emt 00:02:36]} f3+
{[%clk 00:26:32]} {[%emt 00:01:32]} 56. Kxf3 {[%clk 00:00:34]} {[%emt
00:03:11]} Rf1+ {[%clk 00:26:43]} {[%emt 00:00:20]} 57. Kg3 {[%clk 00:00:54]}
{[%emt 00:00:10]} a1=Q {[%clk 00:26:59]} {[%emt 00:00:14]} 58. Ra2 {[%clk
00:00:45]} {[%emt 00:00:39]} Qxa2 {[%clk 00:26:23]} {[%emt 00:01:06]} 59. Kh3
{[%clk 00:01:08]} {[%emt 00:00:06]} Rf3# {[%clk 00:26:44]} {[%emt 00:00:09]}
0-1

[Event "NJSK 2021 Meisjes A&B"]
[Site "Almelo, Netherlands"]
[Date "2021.08.04"]
[Round "4.4"]
[White "Bogouslavskii, Veronique"]
[Black "Van Essen, Marieke"]
[Result "1/2-1/2"]
[TimeControl "90min/40moves + 30sec/move"]
[WhiteElo "1207"]
[BlackElo "1610"]

1. e4 {[%clk 01:30:51]} {[%emt 00:00:09]} e5 {[%clk 01:30:57]} {[%emt
00:00:04]} 2. Nf3 {[%clk 01:31:16]} {[%emt 00:00:05]} Nc6 {[%clk 01:31:26]}
{[%emt 00:00:02]} 3. Bc4 {[%clk 01:31:40]} {[%emt 00:00:06]} Bc5 {[%clk
01:31:52]} {[%emt 00:00:04]} 4. b4 {[%clk 01:32:04]} {[%emt 00:00:06]} Bxb4
{[%clk 01:29:01]} {[%emt 00:03:21]} 5. c3 {[%clk 01:32:04]} {[%emt 00:00:31]}
Ba5 {[%clk 01:28:36]} {[%emt 00:00:55]} 6. d4 {[%clk 01:32:25]} {[%emt
00:00:08]} exd4 {[%clk 01:21:35]} {[%emt 00:07:30]} 7. O-O {[%clk 01:32:33]}
{[%emt 00:00:23]} Nge7 {[%clk 01:19:43]} {[%emt 00:02:23]} 8. Ng5 {[%clk
01:28:01]} {[%emt 00:05:01]} Ne5 {[%clk 01:16:29]} {[%emt 00:03:43]} 9. Nxf7
{[%clk 01:24:22]} {[%emt 00:04:09]} Nxf7 {[%clk 01:16:26]} {[%emt 00:00:32]} 10.
Bxf7+ {[%clk 01:24:34]} {[%emt 00:00:18]} Kxf7 {[%clk 01:15:55]} {[%emt
00:01:02]} 11. Qh5+ {[%clk 01:24:56]} {[%emt 00:00:07]} g6 {[%clk 01:15:08]}
{[%emt 00:01:17]} 12. Qxa5 {[%clk 01:25:09]} {[%emt 00:00:18]} d5 {[%clk
01:11:50]} {[%emt 00:03:48]} 13. exd5 {[%clk 01:19:15]} {[%emt 00:06:24]} Nxd5
{[%clk 01:09:36]} {[%emt 00:02:44]} 14. cxd4 {[%clk 01:09:28]} {[%emt
00:10:17]} Be6 {[%clk 01:06:12]} {[%emt 00:03:54]} 15. Nd2 {[%clk 01:07:17]}
{[%emt 00:02:40]} c6 {[%clk 01:04:30]} {[%emt 00:02:13]} 16. Qa3 {[%clk
01:02:54]} {[%emt 00:04:52]} Qc7 {[%clk 00:58:26]} {[%emt 00:06:34]} 17. Nf3
{[%clk 01:01:25]} {[%emt 00:02:00]} Rhe8 {[%clk 00:54:44]} {[%emt 00:04:11]} 18.
Bh6 {[%clk 00:54:46]} {[%emt 00:07:09]} b6 {[%clk 00:50:11]} {[%emt 00:05:03]}
19. Ne5+ {[%clk 00:53:44]} {[%emt 00:01:32]} Kg8 {[%clk 00:49:50]} {[%emt
00:00:50]} 20. Qg3 {[%clk 00:48:25]} {[%emt 00:05:49]} Bf5 {[%clk 00:43:48]}
{[%emt 00:06:32]} 21. Qg5 {[%clk 00:40:22]} {[%emt 00:08:33]} Rac8 {[%clk
00:36:00]} {[%emt 00:08:19]} 22. g4 {[%clk 00:35:57]} {[%emt 00:04:55]} Bc2
{[%clk 00:32:19]} {[%emt 00:04:10]} 23. Rac1 {[%clk 00:30:56]} {[%emt
00:05:32]} Ba4 {[%clk 00:32:03]} {[%emt 00:00:46]} 24. f4 {[%clk 00:30:33]}
{[%emt 00:00:53]} Qe7 {[%clk 00:24:35]} {[%emt 00:07:55]} 25. h4 {[%clk
00:18:58]} {[%emt 00:12:07]} Qa3 {[%clk 00:21:13]} {[%emt 00:03:53]} 26. Nf3
{[%clk 00:06:10]} {[%emt 00:13:18]} Bb5 {[%clk 00:15:26]} {[%emt 00:06:17]} 27.
h5 {[%clk 00:01:57]} {[%emt 00:04:43]} Bxf1 {[%clk 00:14:04]} {[%emt 00:01:52]}
28. Rxf1 {[%clk 00:02:21]} {[%emt 00:00:06]} Qe3+ {[%clk 00:11:07]} {[%emt
00:03:28]} 29. Kg2 {[%clk 00:01:39]} {[%emt 00:01:12]} Qe2+ {[%clk 00:08:42]}
{[%emt 00:02:55]} 30. Rf2 {[%clk 00:01:54]} {[%emt 00:00:15]} Qe7 {[%clk
00:07:04]} {[%emt 00:02:08]} 31. hxg6 {[%clk 00:01:20]} {[%emt 00:01:04]} Qxg5
{[%clk 00:05:16]} {[%emt 00:02:17]} 32. gxh7+ {[%clk 00:01:48]} {[%emt
00:00:02]} Kxh7 {[%clk 00:05:36]} {[%emt 00:00:10]} 33. Bxg5 {[%clk 00:02:11]}
{[%emt 00:00:07]} Re4 {[%clk 00:05:11]} {[%emt 00:00:55]} 34. Kg3 {[%clk
00:02:08]} {[%emt 00:00:33]} Kg7 {[%clk 00:04:54]} {[%emt 00:00:47]} 35. Nh4
{[%clk 00:01:47]} {[%emt 00:00:52]} Ne7 {[%clk 00:03:39]} {[%emt 00:01:45]} 36.
Bxe7 {[%clk 00:01:55]} {[%emt 00:00:21]} Rxe7 {[%clk 00:02:02]} {[%emt
00:02:07]} 37. Nf5+ {[%clk 00:02:24]} Kf6 {[%clk 00:02:24]} {[%emt 00:00:09]}
38. Nxe7 {[%clk 00:02:50]} {[%emt 00:00:04]} Kxe7 {[%clk 00:02:48]} {[%emt
00:00:06]} 39. g5 {[%clk 00:03:02]} {[%emt 00:00:18]} c5 {[%clk 00:02:30]}
{[%emt 00:00:48]} 40. dxc5 {[%clk 00:03:13]} {[%emt 00:00:19]} bxc5 {[%clk
00:02:50]} {[%emt 00:00:10]} 41. f5 {[%clk 00:02:12]} {[%emt 00:01:30]} c4
{[%clk 00:02:41]} {[%emt 00:00:40]} 42. Rc2 {[%clk 00:01:58]} {[%emt 00:00:44]}
c3 {[%clk 00:02:10]} {[%emt 00:01:00]} 43. Kf3 {[%clk 00:29:20]} {[%emt
00:03:08]} Kd6 {[%clk 00:29:37]} {[%emt 00:03:03]} 44. f6 {[%clk 00:14:41]}
{[%emt 00:15:08]} Ke6 {[%clk 00:27:02]} {[%emt 00:03:05]} 45. Kg4 {[%clk
00:12:57]} {[%emt 00:02:14]} Kf7 {[%clk 00:26:00]} {[%emt 00:01:33]} 46. Kf4
{[%clk 00:07:08]} {[%emt 00:06:18]} Kg6 {[%clk 00:24:39]} {[%emt 00:01:51]} 47.
Ke5 {[%clk 00:06:13]} {[%emt 00:01:26]} Kxg5 {[%clk 00:20:22]} {[%emt
00:04:47]} 48. f7 {[%clk 00:05:58]} {[%emt 00:00:44]} Kg6 {[%clk 00:16:47]}
{[%emt 00:04:05]} 49. Ke6 {[%clk 00:05:29]} {[%emt 00:00:59]} Kg7 {[%clk
00:11:34]} {[%emt 00:05:43]} 50. Rg2+ {[%clk 00:04:53]} {[%emt 00:01:07]} Kh7
{[%clk 00:11:30]} {[%emt 00:00:35]} 51. Kd7 {[%clk 00:04:19]} {[%emt 00:01:03]}
c2 {[%clk 00:10:35]} {[%emt 00:01:25]} 52. Rg1 {[%clk 00:03:40]} {[%emt
00:01:09]} Rb8 {[%clk 00:08:25]} {[%emt 00:02:41]} 53. Rc1 {[%clk 00:03:01]}
{[%emt 00:01:08]} Kg7 {[%clk 00:05:42]} {[%emt 00:03:13]} 54. Rxc2 {[%clk
00:02:15]} {[%emt 00:01:16]} Rb7+ {[%clk 00:05:12]} {[%emt 00:01:01]} 55. Rc7
{[%clk 00:01:53]} {[%emt 00:00:52]} Rxc7+ {[%clk 00:05:09]} {[%emt 00:00:33]}
56. Kxc7 {[%clk 00:02:22]} {[%emt 00:00:01]} Kxf7 {[%clk 00:05:32]} {[%emt
00:00:07]} 57. Kb7 {[%clk 00:02:47]} {[%emt 00:00:05]} a5 {[%clk 00:05:40]}
{[%emt 00:00:22]} 58. a4 {[%clk 00:02:41]} {[%emt 00:00:36]} Ke7 {[%clk
00:05:48]} {[%emt 00:00:22]} 59. Kc7 {[%clk 00:02:13]} {[%emt 00:00:58]} Ke8
{[%clk 00:05:40]} {[%emt 00:00:37]} 60. Kb6 {[%clk 00:02:16]} {[%emt 00:00:28]}
Kd8 {[%clk 00:05:26]} {[%emt 00:00:44]} 61. Kxa5 {[%clk 00:02:17]} {[%emt
00:00:28]} Kc8 {[%clk 00:05:46]} {[%emt 00:00:10]} 62. Ka6 {[%clk 00:01:41]}
{[%emt 00:01:07]} Kb8 {[%clk 00:06:08]} {[%emt 00:00:08]} 63. Kb6 {[%clk
00:01:48]} {[%emt 00:00:23]} Ka8 {[%clk 00:06:34]} {[%emt 00:00:04]} 64. a5
{[%clk 00:02:06]} {[%emt 00:00:11]} Kb8 {[%clk 00:06:55]} {[%emt 00:00:09]} 65.
a6 {[%clk 00:02:35]} Ka8 {[%clk 00:07:19]} {[%emt 00:00:06]} 66. a7 {[%clk
00:03:03]} {[%emt 00:00:02]} 1/2-1/2